[Event "Titled Tuesday Blitz July 26 Late 2022"]
[White "Wachinger, Guenther"]
[Black "Arnold, Ken"]
[WhiteFideId "4604261"]
[BlackFideId "2056836"]
[WhiteElo "2212"]
[BlackElo "2290"]
[Result "1-0"]
[Round "05"]
[TimeControl "180+1"]
[Date "2022.07.27"]
[WhiteClock "0:00:11"]
[BlackClock "0:00:01"]

1. e4 {[%clk 0:03:00]}  c6 {[%clk 0:02:59]} 2. c4 {[%clk 0:02:51]}  d5 {[%clk 0:02:57]} 3. cxd5 {[%clk 0:02:52]}  cxd5 {[%clk 0:02:57]} 4. exd5 {[%clk 0:02:53]}  Nf6 {[%clk 0:02:55]} 5. Nc3 {[%clk 0:02:52]}  Nbd7 {[%clk 0:02:55]} 6. Nf3 {[%clk 0:02:52]}  g6 {[%clk 0:02:54]} 7. Bc4 {[%clk 0:02:52]}  Bg7 {[%clk 0:02:54]} 8. O-O {[%clk 0:02:51]}  O-O {[%clk 0:02:54]} 9. d4 {[%clk 0:02:52]}  Nb6 {[%clk 0:02:53]} 10. Qb3 {[%clk 0:02:51]}  Bf5 {[%clk 0:02:27]} 11. Re1 {[%clk 0:02:42]}  Rc8 {[%clk 0:02:23]} 12. Ne5 {[%clk 0:02:37]}  Nxc4 {[%clk 0:02:13]} 13. Nxc4 {[%clk 0:02:38]}  Nxd5 {[%clk 0:02:09]} 14. Ne3 {[%clk 0:02:28]}  Nxe3 {[%clk 0:01:29]} 15. Bxe3 {[%clk 0:02:25]}  b6 {[%clk 0:01:22]} 16. Rad1 {[%clk 0:02:23]}  Qd7 {[%clk 0:01:01]} 17. d5 {[%clk 0:02:10]}  h6 {[%clk 0:00:51]} 18. Bd4 {[%clk 0:02:07]}  Bxd4 {[%clk 0:00:43]} 19. Rxd4 {[%clk 0:02:08]}  Rc5 {[%clk 0:00:39]} 20. Red1 {[%clk 0:01:59]}  Rfc8 {[%clk 0:00:37]} 21. h3 {[%clk 0:01:53]}  g5 {[%clk 0:00:33]} 22. Re1 {[%clk 0:01:43]}  Bg6 {[%clk 0:00:26]} 23. Qd1 {[%clk 0:01:42]}  b5 {[%clk 0:00:25]} 24. a3 {[%clk 0:01:41]}  a5 {[%clk 0:00:25]} 25. Qe2 {[%clk 0:01:36]}  e6 {[%clk 0:00:23]} 26. Red1 {[%clk 0:01:34]}  b4 {[%clk 0:00:18]} 27. axb4 {[%clk 0:01:31]}  axb4 {[%clk 0:00:18]} 28. dxe6 {[%clk 0:01:22]}  Qxe6 {[%clk 0:00:17]} 29. Qxe6 {[%clk 0:01:21]}  fxe6 {[%clk 0:00:18]} 30. Rxb4 {[%clk 0:01:21]}  Rf8 {[%clk 0:00:15]} 31. Rb6 {[%clk 0:01:17]}  Bf7 {[%clk 0:00:14]} 32. Ne4 {[%clk 0:01:16]}  Rc2 {[%clk 0:00:14]} 33. Rd2 {[%clk 0:01:15]}  Rfc8 {[%clk 0:00:12]} 34. Rxc2 {[%clk 0:01:07]}  Rxc2 {[%clk 0:00:11]} 35. b4 {[%clk 0:01:07]}  Rb2 {[%clk 0:00:11]} 36. Rb7 {[%clk 0:01:05]}  Bg6 {[%clk 0:00:10]} 37. Nf6+ {[%clk 0:01:02]}  Kf8 {[%clk 0:00:10]} 38. Nd7+ {[%clk 0:01:01]}  Ke8 {[%clk 0:00:10]} 39. Ne5 {[%clk 0:01:00]}  Be4 {[%clk 0:00:10]} 40. Rb8+ {[%clk 0:00:44]}  Ke7 {[%clk 0:00:09]} 41. f3 {[%clk 0:00:45]}  Bd5 {[%clk 0:00:09]} 42. Rh8 {[%clk 0:00:31]}  Kd6 {[%clk 0:00:08]} 43. Nf7+ {[%clk 0:00:26]}  Ke7 {[%clk 0:00:05]} 44. Nxh6 {[%clk 0:00:26]}  Rxb4 {[%clk 0:00:05]} 45. Ng4 {[%clk 0:00:26]}  Rb1+ {[%clk 0:00:04]} 46. Kh2 {[%clk 0:00:25]}  Rb2 {[%clk 0:00:05]} 47. Kg3 {[%clk 0:00:25]}  Rb5 {[%clk 0:00:04]} 48. Rh7+ {[%clk 0:00:21]}  Kf8 {[%clk 0:00:03]} 49. Nf6 {[%clk 0:00:19]}  Bc4 {[%clk 0:00:03]} 50. Rc7 {[%clk 0:00:16]}  Bf1 {[%clk 0:00:03]} 51. Kf2 {[%clk 0:00:16]}  Bd3 {[%clk 0:00:02]} 52. Kg3 {[%clk 0:00:16]}  Bf5 {[%clk 0:00:02]} 53. Nd7+ {[%clk 0:00:13]}  Ke8 {[%clk 0:00:02]} 54. Nf6+ {[%clk 0:00:13]}  Kf8 {[%clk 0:00:02]} 55. h4 {[%clk 0:00:13]}  gxh4+ {[%clk 0:00:02]} 56. Kxh4 {[%clk 0:00:14]}  Rb2 {[%clk 0:00:02]} 57. g4 {[%clk 0:00:15]}  Bg6 {[%clk 0:00:01]} 58. Kg5 {[%clk 0:00:15]}  Bf7 {[%clk 0:00:02]} 59. f4 {[%clk 0:00:13]}  Rf2 {[%clk 0:00:01]} 60. Ne4 {[%clk 0:00:11]}  Rf1 {[%clk 0:00:01]} 61. Nd6 {[%clk 0:00:11]} 1-0


[Site "https://www.chess.com"]

[Event "Titled Tuesday Blitz July 26 Late 2022"]
[White "Yedidia, Daniel"]
[Black "Jorquera, Marcelo"]
[WhiteFideId "30905907"]
[BlackFideId "3401197"]
[WhiteElo "2538"]
[BlackElo "2136"]
[Result "1-0"]
[Round "05"]
[TimeControl "180+1"]
[Date "2022.07.27"]
[WhiteClock "0:00:11"]
[BlackClock "0:00:01"]

1. d4 {[%clk 0:03:00]}  Nf6 {[%clk 0:02:59]} 2. c4 {[%clk 0:03:01]}  g6 {[%clk 0:03:00]} 3. Nc3 {[%clk 0:03:00]}  Bg7 {[%clk 0:03:00]} 4. e4 {[%clk 0:03:00]}  d6 {[%clk 0:03:00]} 5. Nf3 {[%clk 0:03:01]}  O-O {[%clk 0:03:01]} 6. Be2 {[%clk 0:03:01]}  e5 {[%clk 0:03:01]} 7. Be3 {[%clk 0:03:02]}  exd4 {[%clk 0:02:08]} 8. Nxd4 {[%clk 0:03:01]}  Re8 {[%clk 0:02:09]} 9. f3 {[%clk 0:02:56]}  c6 {[%clk 0:02:09]} 10. Qd2 {[%clk 0:02:56]}  d5 {[%clk 0:01:57]} 11. exd5 {[%clk 0:02:53]}  cxd5 {[%clk 0:01:58]} 12. c5 {[%clk 0:02:54]}  Nc6 {[%clk 0:01:57]} 13. Nxc6 {[%clk 0:02:37]}  bxc6 {[%clk 0:01:56]} 14. O-O {[%clk 0:02:35]}  Bf5 {[%clk 0:01:32]} 15. Bd4 {[%clk 0:02:31]}  Rb8 {[%clk 0:01:27]} 16. Rfe1 {[%clk 0:02:30]}  Bf8 {[%clk 0:00:51]} 17. a3 {[%clk 0:02:25]}  a5 {[%clk 0:00:38]} 18. Na4 {[%clk 0:02:25]}  Nd7 {[%clk 0:00:33]} 19. Rac1 {[%clk 0:02:23]}  Rb3 {[%clk 0:00:27]} 20. Bf1 {[%clk 0:01:58]}  Rxe1 {[%clk 0:00:24]} 21. Qxe1 {[%clk 0:01:50]}  Qg5 {[%clk 0:00:20]} 22. Rc3 {[%clk 0:01:37]}  Rxc3 {[%clk 0:00:18]} 23. Qxc3 {[%clk 0:01:36]}  h5 {[%clk 0:00:17]} 24. Nb6 {[%clk 0:01:31]}  h4 {[%clk 0:00:15]} 25. Nxd7 {[%clk 0:01:28]}  Bxd7 {[%clk 0:00:16]} 26. Qe3 {[%clk 0:01:27]}  Qf5 {[%clk 0:00:15]} 27. b4 {[%clk 0:01:23]}  axb4 {[%clk 0:00:14]} 28. axb4 {[%clk 0:01:24]}  Bg7 {[%clk 0:00:14]} 29. Bd3 {[%clk 0:01:19]}  Qe6 {[%clk 0:00:13]} 30. Qxe6 {[%clk 0:01:15]}  Bxe6 {[%clk 0:00:14]} 31. Bxg7 {[%clk 0:01:13]}  Kxg7 {[%clk 0:00:14]} 32. Kf2 {[%clk 0:01:14]}  Kf6 {[%clk 0:00:13]} 33. Ke3 {[%clk 0:01:15]}  g5 {[%clk 0:00:12]} 34. Kd4 {[%clk 0:01:13]}  Bd7 {[%clk 0:00:09]} 35. g3 {[%clk 0:01:11]}  hxg3 {[%clk 0:00:08]} 36. hxg3 {[%clk 0:01:11]}  Ke6 {[%clk 0:00:09]} 37. Bf1 {[%clk 0:00:59]}  f6 {[%clk 0:00:06]} 38. f4 {[%clk 0:00:50]}  gxf4 {[%clk 0:00:06]} 39. gxf4 {[%clk 0:00:51]}  Ke7 {[%clk 0:00:06]} 40. Bd3 {[%clk 0:00:46]}  Kd8 {[%clk 0:00:04]} 41. Bg6 {[%clk 0:00:33]}  Kc7 {[%clk 0:00:04]} 42. Bf7 {[%clk 0:00:31]}  Kd8 {[%clk 0:00:04]} 43. b5 {[%clk 0:00:17]}  cxb5 {[%clk 0:00:04]} 44. Bxd5 {[%clk 0:00:18]}  Kc7 {[%clk 0:00:04]} 45. Kc3 {[%clk 0:00:18]}  Bc6 {[%clk 0:00:04]} 46. Be6 {[%clk 0:00:15]}  Kb7 {[%clk 0:00:03]} 47. Kb4 {[%clk 0:00:15]}  Kc7 {[%clk 0:00:03]} 48. Bf5 {[%clk 0:00:14]}  Kb7 {[%clk 0:00:02]} 49. Bd3 {[%clk 0:00:14]}  Ka6 {[%clk 0:00:02]} 50. Bf5 {[%clk 0:00:10]}  Be8 {[%clk 0:00:02]} 51. Bc8+ {[%clk 0:00:10]}  Ka7 {[%clk 0:00:01]} 52. Ka5 {[%clk 0:00:11]} 1-0


[Site "https://www.chess.com"]

[Event "Titled Tuesday Blitz July 26 Late 2022"]
[White "Zhigalko, Sergei"]
[Black "Ismagilov, Damir"]
[WhiteFideId "13502956"]
[BlackFideId "34199982"]
[WhiteElo "2662"]
[BlackElo "2138"]
[Result "1-0"]
[Round "05"]
[TimeControl "180+1"]
[Date "2022.07.26"]
[WhiteClock "0:00:12"]
[BlackClock "0:00:01"]

1. e4 {[%clk 0:03:00]}  e6 {[%clk 0:03:00]} 2. d4 {[%clk 0:03:01]}  d5 {[%clk 0:03:00]} 3. e5 {[%clk 0:03:01]}  c5 {[%clk 0:02:59]} 4. c3 {[%clk 0:03:01]}  Nc6 {[%clk 0:03:00]} 5. Nf3 {[%clk 0:03:01]}  Nh6 {[%clk 0:03:00]} 6. Na3 {[%clk 0:03:01]}  cxd4 {[%clk 0:02:57]} 7. cxd4 {[%clk 0:03:02]}  Bb4+ {[%clk 0:02:57]} 8. Bd2 {[%clk 0:02:58]}  Qa5 {[%clk 0:02:57]} 9. Nb5 {[%clk 0:02:44]}  O-O {[%clk 0:02:38]} 10. Nc3 {[%clk 0:02:42]}  Nf5 {[%clk 0:02:25]} 11. a3 {[%clk 0:02:39]}  Bxc3 {[%clk 0:02:21]} 12. Bxc3 {[%clk 0:02:39]}  Qb6 {[%clk 0:02:19]} 13. Bd3 {[%clk 0:02:31]}  Bd7 {[%clk 0:02:14]} 14. O-O {[%clk 0:01:57]}  Rfc8 {[%clk 0:02:11]} 15. Qd2 {[%clk 0:01:55]}  Qd8 {[%clk 0:02:00]} 16. g3 {[%clk 0:01:36]}  a6 {[%clk 0:01:40]} 17. Rfe1 {[%clk 0:01:24]}  Na7 {[%clk 0:01:33]} 18. g4 {[%clk 0:01:07]}  Nh4 {[%clk 0:01:16]} 19. Nxh4 {[%clk 0:01:06]}  Qxh4 {[%clk 0:01:15]} 20. Re3 {[%clk 0:01:07]}  Nb5 {[%clk 0:00:56]} 21. Kg2 {[%clk 0:00:54]}  h6 {[%clk 0:00:50]} 22. Rg3 {[%clk 0:00:51]}  Nxc3 {[%clk 0:00:45]} 23. bxc3 {[%clk 0:00:51]}  Bb5 {[%clk 0:00:42]} 24. Bc2 {[%clk 0:00:51]}  f6 {[%clk 0:00:21]} 25. Re1 {[%clk 0:00:43]}  Rf8 {[%clk 0:00:19]} 26. f4 {[%clk 0:00:30]}  fxe5 {[%clk 0:00:18]} 27. Rxe5 {[%clk 0:00:29]}  Rae8 {[%clk 0:00:15]} 28. Qe3 {[%clk 0:00:19]}  Qf6 {[%clk 0:00:14]} 29. Rf3 {[%clk 0:00:19]}  Qh4 {[%clk 0:00:14]} 30. h3 {[%clk 0:00:17]}  Rf6 {[%clk 0:00:08]} 31. Rh5 {[%clk 0:00:15]}  Qxh5 {[%clk 0:00:02]} 32. gxh5 {[%clk 0:00:14]}  Ref8 {[%clk 0:00:03]} 33. Bg6 {[%clk 0:00:13]}  Bd7 {[%clk 0:00:01]} 34. Qe5 {[%clk 0:00:13]}  Rc8 {[%clk 0:00:01]} 35. Re3 {[%clk 0:00:12]} 1-0


[Site "https://www.chess.com"]

[Event "Titled Tuesday Blitz July 26 Late 2022"]
[White "Zhukova, Natalia"]
[Black "Gubajdullin, Alexei"]
[WhiteFideId "14101513"]
[BlackFideId "4141202"]
[WhiteElo "2296"]
[BlackElo "2190"]
[Result "0-1"]
[Round "05"]
[TimeControl "180+1"]
[Date "2022.07.27"]
[WhiteClock "0:00:08"]
[BlackClock "0:00:29"]

1. c4 {[%clk 0:02:59]}  Nf6 {[%clk 0:02:59]} 2. Nc3 {[%clk 0:02:58]}  g6 {[%clk 0:02:58]} 3. e4 {[%clk 0:02:58]}  d6 {[%clk 0:02:58]} 4. d4 {[%clk 0:02:59]}  Bg7 {[%clk 0:02:58]} 5. f4 {[%clk 0:02:59]}  O-O {[%clk 0:02:57]} 6. Nf3 {[%clk 0:03:00]}  Na6 {[%clk 0:02:57]} 7. Bd3 {[%clk 0:02:57]}  c5 {[%clk 0:02:56]} 8. d5 {[%clk 0:02:57]}  e6 {[%clk 0:02:56]} 9. O-O {[%clk 0:02:52]}  exd5 {[%clk 0:02:55]} 10. cxd5 {[%clk 0:02:53]}  Bg4 {[%clk 0:02:54]} 11. h3 {[%clk 0:02:39]}  Bxf3 {[%clk 0:02:53]} 12. Qxf3 {[%clk 0:02:40]}  Nd7 {[%clk 0:02:52]} 13. Bxa6 {[%clk 0:01:58]}  bxa6 {[%clk 0:02:51]} 14. Kh2 {[%clk 0:01:56]}  Qa5 {[%clk 0:02:47]} 15. Bd2 {[%clk 0:01:51]}  Rab8 {[%clk 0:02:45]} 16. b3 {[%clk 0:01:51]}  Rfe8 {[%clk 0:02:34]} 17. Rac1 {[%clk 0:01:47]}  c4 {[%clk 0:02:24]} 18. bxc4 {[%clk 0:01:15]}  Rb2 {[%clk 0:02:21]} 19. Be1 {[%clk 0:01:04]}  Qa3 {[%clk 0:02:13]} 20. e5 {[%clk 0:00:45]}  dxe5 {[%clk 0:02:12]} 21. f5 {[%clk 0:00:45]}  e4 {[%clk 0:02:05]} 22. Qd1 {[%clk 0:00:16]}  e3 {[%clk 0:01:36]} 23. Qf3 {[%clk 0:00:14]}  e2 {[%clk 0:01:23]} 24. Rf2 {[%clk 0:00:12]}  Ne5 {[%clk 0:01:22]} 25. Qe4 {[%clk 0:00:12]}  Bh6 {[%clk 0:01:12]} 26. fxg6 {[%clk 0:00:11]}  hxg6 {[%clk 0:01:10]} 27. Rc2 {[%clk 0:00:06]}  Rxc2 {[%clk 0:00:58]} 28. Qxc2 {[%clk 0:00:07]}  Nxc4 {[%clk 0:00:55]} 29. Rxe2 {[%clk 0:00:07]}  Ne3 {[%clk 0:00:55]} 30. Qd3 {[%clk 0:00:07]}  Qc5 {[%clk 0:00:53]} 31. Bg3 {[%clk 0:00:06]}  Nf1+ {[%clk 0:00:52]} 32. Kh1 {[%clk 0:00:06]}  Nxg3+ {[%clk 0:00:49]} 33. Qxg3 {[%clk 0:00:07]}  Rxe2 {[%clk 0:00:45]} 34. Nxe2 {[%clk 0:00:08]}  Qxd5 {[%clk 0:00:29]} 0-1


[Site "https://www.chess.com"]

[Event "Titled Tuesday Blitz July 26 Late 2022"]
[White "Zong, Davis"]
[Black "Bartholomew, John"]
[WhiteFideId "30903955"]
[BlackFideId "2019353"]
[WhiteElo "2061"]
[BlackElo "2764"]
[Result "0-1"]
[Round "05"]
[TimeControl "180+1"]
[Date "2022.07.26"]
[WhiteClock "0:00:02"]
[BlackClock "0:00:09"]

1. d4 {[%clk 0:03:00]}  d6 {[%clk 0:02:59]} 2. e4 {[%clk 0:03:00]}  Nf6 {[%clk 0:02:59]} 3. Nc3 {[%clk 0:03:00]}  e5 {[%clk 0:02:59]} 4. Nf3 {[%clk 0:02:58]}  Nbd7 {[%clk 0:02:58]} 5. Bc4 {[%clk 0:02:54]}  Be7 {[%clk 0:02:59]} 6. O-O {[%clk 0:02:53]}  O-O {[%clk 0:02:58]} 7. a4 {[%clk 0:02:52]}  c6 {[%clk 0:02:58]} 8. b3 {[%clk 0:02:45]}  Qc7 {[%clk 0:02:50]} 9. Bb2 {[%clk 0:02:44]}  exd4 {[%clk 0:02:36]} 10. Nxd4 {[%clk 0:02:44]}  Ne5 {[%clk 0:02:36]} 11. Be2 {[%clk 0:02:43]}  Re8 {[%clk 0:02:32]} 12. Kh1 {[%clk 0:02:28]}  Bf8 {[%clk 0:02:27]} 13. Qd2 {[%clk 0:02:21]}  Ng6 {[%clk 0:02:08]} 14. f3 {[%clk 0:02:20]}  d5 {[%clk 0:01:53]} 15. exd5 {[%clk 0:02:16]}  cxd5 {[%clk 0:01:53]} 16. Bb5 {[%clk 0:01:36]}  Re5 {[%clk 0:01:38]} 17. Nce2 {[%clk 0:01:22]}  Rh5 {[%clk 0:01:22]} 18. h3 {[%clk 0:01:20]}  Bxh3 {[%clk 0:01:15]} 19. f4 {[%clk 0:01:05]}  Ne4 {[%clk 0:01:02]} 20. Qe3 {[%clk 0:01:05]}  Bg4+ {[%clk 0:00:57]} 21. Kg1 {[%clk 0:01:05]}  Bc5 {[%clk 0:00:57]} 22. Ng3 {[%clk 0:00:44]}  Nxg3 {[%clk 0:00:51]} 23. Qxg3 {[%clk 0:00:44]}  Bf5 {[%clk 0:00:45]} 24. Qf3 {[%clk 0:00:36]}  Rh4 {[%clk 0:00:38]} 25. g3 {[%clk 0:00:32]}  Be4 {[%clk 0:00:36]} 26. Qe3 {[%clk 0:00:21]}  Rh1+ {[%clk 0:00:34]} 27. Kf2 {[%clk 0:00:21]}  Rh2+ {[%clk 0:00:35]} 28. Ke1 {[%clk 0:00:17]}  Ne7 {[%clk 0:00:29]} 29. Rf2 {[%clk 0:00:13]}  Nf5 {[%clk 0:00:26]} 30. Qd2 {[%clk 0:00:11]}  Rxf2 {[%clk 0:00:22]} 31. Kxf2 {[%clk 0:00:10]}  Nxd4 {[%clk 0:00:19]} 32. Bxd4 {[%clk 0:00:10]}  Bxd4+ {[%clk 0:00:20]} 33. Qxd4 {[%clk 0:00:11]}  Qxc2+ {[%clk 0:00:21]} 34. Be2 {[%clk 0:00:10]}  Re8 {[%clk 0:00:20]} 35. Re1 {[%clk 0:00:09]}  b6 {[%clk 0:00:19]} 36. Kf1 {[%clk 0:00:08]}  h5 {[%clk 0:00:19]} 37. Qd1 {[%clk 0:00:04]}  Qc3 {[%clk 0:00:18]} 38. Kf2 {[%clk 0:00:04]}  d4 {[%clk 0:00:18]} 39. Bf3 {[%clk 0:00:04]}  f5 {[%clk 0:00:16]} 40. Bxh5 {[%clk 0:00:02]}  Re6 {[%clk 0:00:13]} 41. Bf3 {[%clk 0:00:02]}  Rh6 {[%clk 0:00:12]} 42. Kg2 {[%clk 0:00:01]}  Re6 {[%clk 0:00:11]} 43. Kf2 {[%clk 0:00:01]}  Re7 {[%clk 0:00:11]} 44. g4 {[%clk 0:00:02]}  d3 {[%clk 0:00:10]} 45. gxf5 {[%clk 0:00:02]}  Qd4+ {[%clk 0:00:10]} 46. Kg2 {[%clk 0:00:03]}  d2 {[%clk 0:00:08]} 47. Rxe4 {[%clk 0:00:02]}  Rxe4 {[%clk 0:00:08]} 48. Bxe4 {[%clk 0:00:03]}  Qxe4+ {[%clk 0:00:09]} 49. Kf2 {[%clk 0:00:03]}  Qd3 {[%clk 0:00:10]} 50. f6 {[%clk 0:00:03]}  gxf6 {[%clk 0:00:10]} 51. Qg4+ {[%clk 0:00:03]}  Kf7 {[%clk 0:00:11]} 52. Qh5+ {[%clk 0:00:03]}  Ke7 {[%clk 0:00:11]} 53. Qd1 {[%clk 0:00:02]}  Kd6 {[%clk 0:00:09]} 0-1


[Site "https://www.chess.com"]

[Event "Titled Tuesday Blitz July 26 Late 2022"]
[White "Abdrlauf, Elham"]
[Black "Zhu, Jiner"]
[WhiteFideId "1533533"]
[BlackFideId "8608059"]
[WhiteElo "2429"]
[BlackElo "2281"]
[Result "0-1"]
[Round "06"]
[TimeControl "180+1"]
[Date "2022.07.26"]
[WhiteClock "0:00:08"]
[BlackClock "0:00:07"]

1. e4 {[%clk 0:03:00]}  e5 {[%clk 0:02:55]} 2. Nc3 {[%clk 0:03:00]}  Nf6 {[%clk 0:02:54]} 3. d4 {[%clk 0:03:00]}  exd4 {[%clk 0:02:53]} 4. Qxd4 {[%clk 0:03:01]}  Nc6 {[%clk 0:02:53]} 5. Qd3 {[%clk 0:03:02]}  Bc5 {[%clk 0:02:48]} 6. Bf4 {[%clk 0:02:57]}  O-O {[%clk 0:02:47]} 7. O-O-O {[%clk 0:02:56]}  d6 {[%clk 0:02:34]} 8. Be3 {[%clk 0:02:50]}  Bxe3+ {[%clk 0:02:23]} 9. Qxe3 {[%clk 0:02:51]}  Qe7 {[%clk 0:02:23]} 10. f4 {[%clk 0:02:46]}  Re8 {[%clk 0:02:21]} 11. Bd3 {[%clk 0:02:42]}  Bf5 {[%clk 0:02:15]} 12. Re1 {[%clk 0:02:30]}  d5 {[%clk 0:01:54]} 13. Nge2 {[%clk 0:02:23]}  dxe4 {[%clk 0:01:51]} 14. Bb5 {[%clk 0:02:20]}  a6 {[%clk 0:01:37]} 15. Bxc6 {[%clk 0:02:20]}  bxc6 {[%clk 0:01:38]} 16. Nd4 {[%clk 0:02:21]}  Bd7 {[%clk 0:01:35]} 17. h3 {[%clk 0:02:13]}  Nd5 {[%clk 0:01:27]} 18. Qxe4 {[%clk 0:02:12]}  Qd6 {[%clk 0:01:21]} 19. Qf3 {[%clk 0:02:05]}  Qxf4+ {[%clk 0:01:17]} 20. Qxf4 {[%clk 0:02:02]}  Nxf4 {[%clk 0:01:18]} 21. Reg1 {[%clk 0:01:12]}  c5 {[%clk 0:01:12]} 22. Nb3 {[%clk 0:01:11]}  Bc6 {[%clk 0:00:53]} 23. Rh2 {[%clk 0:01:06]}  Re2 {[%clk 0:00:22]} 24. Nxc5 {[%clk 0:00:43]}  Rxg2 {[%clk 0:00:20]} 25. Rhxg2 {[%clk 0:00:41]}  Bxg2 {[%clk 0:00:19]} 26. h4 {[%clk 0:00:41]}  h5 {[%clk 0:00:14]} 27. Kd2 {[%clk 0:00:37]}  Bc6 {[%clk 0:00:12]} 28. Ke3 {[%clk 0:00:32]}  Ng2+ {[%clk 0:00:11]} 29. Kd4 {[%clk 0:00:20]}  Nxh4 {[%clk 0:00:11]} 30. Rc1 {[%clk 0:00:16]}  Nf3+ {[%clk 0:00:10]} 31. Ke3 {[%clk 0:00:16]}  h4 {[%clk 0:00:10]} 32. N3e4 {[%clk 0:00:14]}  Ne5 {[%clk 0:00:05]} 33. Kf4 {[%clk 0:00:14]}  Re8 {[%clk 0:00:04]} 34. Ng5 {[%clk 0:00:12]}  f6 {[%clk 0:00:04]} 35. Nh3 {[%clk 0:00:11]}  g5+ {[%clk 0:00:03]} 36. Kf5 {[%clk 0:00:10]}  Kf7 {[%clk 0:00:03]} 37. Nxg5+ {[%clk 0:00:03]}  fxg5 {[%clk 0:00:03]} 38. Kxg5 {[%clk 0:00:03]}  Nf3+ {[%clk 0:00:03]} 39. Kg4 {[%clk 0:00:03]}  Rg8+ {[%clk 0:00:03]} 40. Kf4 {[%clk 0:00:02]}  h3 {[%clk 0:00:03]} 41. Ne4 {[%clk 0:00:02]}  Bxe4 {[%clk 0:00:03]} 42. Kxe4 {[%clk 0:00:03]}  h2 {[%clk 0:00:03]} 43. Rf1 {[%clk 0:00:03]}  Rg1 {[%clk 0:00:02]} 44. Rxf3+ {[%clk 0:00:04]}  Ke6 {[%clk 0:00:02]} 45. Rh3 {[%clk 0:00:05]}  h1=Q+ {[%clk 0:00:03]} 46. Rxh1 {[%clk 0:00:05]}  Rxh1 {[%clk 0:00:04]} 47. Kd3 {[%clk 0:00:06]}  Ra1 {[%clk 0:00:05]} 48. Kc4 {[%clk 0:00:07]}  Rxa2 {[%clk 0:00:05]} 49. Kb3 {[%clk 0:00:08]}  Ra1 {[%clk 0:00:06]} 50. Kb4 {[%clk 0:00:08]}  Kd6 {[%clk 0:00:07]} 0-1


[Site "https://www.chess.com"]

[Event "Titled Tuesday Blitz July 26 Late 2022"]
[White "Alexiadis, Hristos"]
[Black "Vagman, Roy"]
[WhiteFideId "4249623"]
[BlackFideId "2828995"]
[WhiteElo "2416"]
[BlackElo "1956"]
[Result "1-0"]
[Round "06"]
[TimeControl "180+1"]
[Date "2022.07.26"]
[WhiteClock "0:00:04"]
[BlackClock "0:00:04"]

1. d4 {[%clk 0:03:00]}  Nf6 {[%clk 0:02:59]} 2. c4 {[%clk 0:03:00]}  c5 {[%clk 0:02:55]} 3. Nf3 {[%clk 0:03:00]}  g6 {[%clk 0:02:53]} 4. Nc3 {[%clk 0:02:58]}  cxd4 {[%clk 0:02:50]} 5. Nxd4 {[%clk 0:02:59]}  Bg7 {[%clk 0:02:51]} 6. e4 {[%clk 0:02:59]}  Nc6 {[%clk 0:02:48]} 7. Be3 {[%clk 0:02:59]}  O-O {[%clk 0:02:46]} 8. f3 {[%clk 0:02:59]}  d6 {[%clk 0:02:44]} 9. Qd2 {[%clk 0:03:00]}  a5 {[%clk 0:02:43]} 10. Rc1 {[%clk 0:02:52]}  a4 {[%clk 0:02:43]} 11. Be2 {[%clk 0:02:51]}  Qa5 {[%clk 0:02:43]} 12. O-O {[%clk 0:02:50]}  a3 {[%clk 0:02:35]} 13. b3 {[%clk 0:02:47]}  Nxd4 {[%clk 0:02:29]} 14. Bxd4 {[%clk 0:02:47]}  Be6 {[%clk 0:02:29]} 15. Qe3 {[%clk 0:02:41]}  Nd7 {[%clk 0:02:22]} 16. Bxg7 {[%clk 0:02:37]}  Kxg7 {[%clk 0:02:23]} 17. Kh1 {[%clk 0:02:37]}  Qc5 {[%clk 0:02:13]} 18. Qd2 {[%clk 0:02:36]}  g5 {[%clk 0:01:30]} 19. Nd5 {[%clk 0:02:32]}  h6 {[%clk 0:01:20]} 20. Nxe7 {[%clk 0:02:31]}  Ne5 {[%clk 0:01:19]} 21. Nd5 {[%clk 0:02:29]}  Bxd5 {[%clk 0:01:08]} 22. cxd5 {[%clk 0:02:30]}  Qb6 {[%clk 0:01:08]} 23. f4 {[%clk 0:02:29]}  gxf4 {[%clk 0:01:08]} 24. Qxf4 {[%clk 0:02:30]}  Rac8 {[%clk 0:00:54]} 25. Qf6+ {[%clk 0:02:18]}  Kg8 {[%clk 0:00:52]} 26. Rxc8 {[%clk 0:02:01]}  Rxc8 {[%clk 0:00:52]} 27. Qxh6 {[%clk 0:02:01]}  Rc2 {[%clk 0:00:48]} 28. Bh5 {[%clk 0:01:52]}  Rf2 {[%clk 0:00:32]} 29. Rc1 {[%clk 0:01:25]}  Qc5 {[%clk 0:00:29]} 30. h3 {[%clk 0:01:24]}  Rc2 {[%clk 0:00:25]} 31. Rf1 {[%clk 0:01:10]}  Rf2 {[%clk 0:00:25]} 32. Rc1 {[%clk 0:00:55]}  Rc2 {[%clk 0:00:24]} 33. Qg5+ {[%clk 0:00:56]}  Kf8 {[%clk 0:00:23]} 34. Qd8+ {[%clk 0:00:51]}  Kg7 {[%clk 0:00:23]} 35. Rf1 {[%clk 0:00:45]}  Rf2 {[%clk 0:00:23]} 36. Rg1 {[%clk 0:00:24]}  Rxa2 {[%clk 0:00:21]} 37. Qg5+ {[%clk 0:00:24]}  Kf8 {[%clk 0:00:21]} 38. Qd8+ {[%clk 0:00:20]}  Kg7 {[%clk 0:00:21]} 39. Qh4 {[%clk 0:00:20]}  Qf2 {[%clk 0:00:18]} 40. Qg5+ {[%clk 0:00:20]}  Kh7 {[%clk 0:00:16]} 41. Qe7 {[%clk 0:00:10]}  Qg3 {[%clk 0:00:11]} 42. Qxd6 {[%clk 0:00:08]}  Kg7 {[%clk 0:00:05]} 43. Bg4 {[%clk 0:00:05]}  f6 {[%clk 0:00:05]} 44. Bf5 {[%clk 0:00:04]}  Nf3 {[%clk 0:00:04]} 45. Qxg3+ {[%clk 0:00:04]}  Ng5 {[%clk 0:00:04]} 46. Rc1 {[%clk 0:00:04]}  Rb2 {[%clk 0:00:03]} 47. Rc7+ {[%clk 0:00:04]}  Kf8 {[%clk 0:00:03]} 48. Qh4 {[%clk 0:00:04]}  Rb1+ {[%clk 0:00:03]} 49. Kh2 {[%clk 0:00:04]}  Rb2 {[%clk 0:00:04]} 50. Qh8# {[%clk 0:00:04]} 1-0


[Site "https://www.chess.com"]